[Event "ETCC Open 2013"]
[Site "Warsaw"]
[Date "2013.11.10"]
[Round "3"]
[White "Aronian, Levon"]
[Black "Ragger, Markus"]
[Result "1/2-1/2"]
[ECO "D70"]
[WhiteElo "2801"]
[BlackElo "2672"]
[PlyCount "115"]
[EventDate "2013.??.??"]
[EventCountry "POL"]
[WhiteTeam "Armenia"]
[BlackTeam "Austria"]
[WhiteTeamCountry "ARM"]
[BlackTeamCountry "AUT"]
[TimeControl "40/5400+30:1800+30"]

1. d4 {[%emt 0:00:00]} Nf6 {[%emt 0:00:00]} 2. c4 {[%emt 0:00:00]} g6 {[%emt 0:
00:00]} 3. Nf3 {[%emt 0:00:00]} Bg7 {[%emt 0:00:00]} 4. g3 {[%emt 0:00:02]} d5
{[%emt 0:01:00]} 5. cxd5 {[%emt 0:00:07]} Nxd5 {[%emt 0:00:12]} 6. Bg2 {[%emt
0:00:08]} Nb6 {[%emt 0:01:01]} 7. Nc3 {[%emt 0:00:52]} Nc6 {[%emt 0:00:19]} 8.
e3 {[%emt 0:00:06]} O-O {[%emt 0:00:14]} 9. O-O {[%emt 0:00:06]} Re8 {[%emt 0:
00:06]} 10. Nh4 {[%emt 0:00:06]} Bd7 {[%emt 0:24:21]} 11. f4 {[%emt 0:03:10]}
a5 {[%emt 0:05:30]} 12. Ne4 {[%emt 0:02:26]} Nd5 {[%emt 0:12:53]} 13. Nf2 {
[%emt 0:20:48]} e6 {[%emt 0:04:00]} 14. e4 {[%emt 0:00:06]} Nb6 {[%emt 0:03:14]
} 15. Nf3 {[%emt 0:01:03]} a4 {[%emt 0:05:06]} 16. e5 {[%emt 0:06:23]} Ne7 {
[%emt 0:02:11]} 17. Ne4 {[%emt 0:02:11]} Bc6 {[%emt 0:02:04]} 18. Re1 {[%emt 0:
00:06]} Ned5 {[%emt 0:01:49]} 19. Qe2 {[%emt 0:06:58]} Nd7 {[%emt 0:02:44]} 20.
a3 {[%emt 0:03:17]} f5 {[%emt 0:07:30]} 21. exf6 {[%emt 0:00:27]} N5xf6 {[%emt
0:00:14]} 22. Nc3 {[%emt 0:01:35]} Nd5 {[%emt 0:03:25]} 23. Bh3 {[%emt 0:06:42]
} Nxc3 {[%emt 0:02:04]} 24. bxc3 {[%emt 0:00:13]} Bd5 {[%emt 0:00:37]} 25. Ng5
{[%emt 0:01:46]} Nf8 {[%emt 0:01:33]} 26. Be3 {[%emt 0:04:27]} b5 {[%emt 0:02:
42]} 27. Bf2 {[%emt 0:03:16]} Rb8 {[%emt 0:02:30]} 28. Rab1 {[%emt 0:04:05]}
Bc4 {[%emt 0:01:07]} 29. Qb2 {[%emt 0:00:51]} Bd5 {[%emt 0:01:28]} 30. Re3 {
[%emt 0:02:38]} h6 {[%emt 0:03:37]} 31. Nf3 {[%emt 0:02:26]} Nd7 {[%emt 0:01:
27]} 32. Qc2 {[%emt 0:03:27]} Qf6 {[%emt 0:00:47]} 33. Bf1 {[%emt 0:03:37]} c6
{[%emt 0:04:27]} 34. Rbe1 {[%emt 0:00:39]} g5 {[%emt 0:00:48]} 35. f5 {[%emt 0:
03:08]} Qf7 {[%emt 0:02:38]} 36. c4 {[%emt 0:00:38]} bxc4 {[%emt 0:01:04]} 37.
fxe6 {[%emt 0:00:08]} Rxe6 {[%emt 0:00:12]} 38. Nxg5 {[%emt 0:02:57]} Qg6 {
[%emt 0:01:10]} 39. Qxg6 {[%emt 0:01:59]} Rxg6 {[%emt 0:00:03]} 40. Ne6 {[%emt
0:00:00]} Bh8 {[%emt 0:00:00]} 41. Nf4 {[%emt 0:01:09]} Rd6 {[%emt 0:08:11]}
42. Re8+ {[%emt 0:02:24]} Rxe8 {[%emt 0:04:43]} 43. Rxe8+ {[%emt 0:01:28]} Nf8
{[%emt 0:00:57]} 44. Rc8 {[%emt 0:17:12]} Bg7 {[%emt 0:09:33]} 45. Be3 {[%emt
0:05:03]} Bf7 {[%emt 0:01:09]} 46. Kf2 {[%emt 0:04:01]} Bxd4 {[%emt 0:02:09]}
47. Bxd4 {[%emt 0:01:14]} Rxd4 {[%emt 0:00:05]} 48. Rxc6 {[%emt 0:00:08]} Rd2+
{[%emt 0:00:14]} 49. Ke3 {[%emt 0:00:23]} Ra2 {[%emt 0:00:47]} 50. Bxc4 {[%emt
0:02:01]} Rxa3+ {[%emt 0:00:10]} 51. Ke4 {[%emt 0:00:09]} Bxc4 {[%emt 0:01:19]}
52. Rxc4 {[%emt 0:00:04]} Ra1 {[%emt 0:00:19]} 53. Kf5 {[%emt 0:00:58]} a3 {
[%emt 0:01:00]} 54. Ra4 {[%emt 0:00:21]} a2 {[%emt 0:01:06]} 55. Ra7 {[%emt 0:
04:00]} Ne6 {[%emt 0:01:35]} 56. h4 {[%emt 0:00:18]} Nxf4 {[%emt 0:00:41]} 57.
gxf4 {[%emt 0:00:05]} h5 {[%emt 0:00:10]} 58. Ke4 1/2-1/2

[Event "ETCC Open 2013"]
[Site "Warsaw"]
[Date "2013.11.10"]
[Round "3"]
[White "Rasmussen, Allan Stig"]
[Black "Teterev, Vitaly"]
[Result "0-1"]
[ECO "D22"]
[WhiteElo "2486"]
[BlackElo "2501"]
[PlyCount "136"]
[EventDate "2013.??.??"]
[EventCountry "POL"]
[WhiteTeam "Denmark"]
[BlackTeam "Belarus"]
[WhiteTeamCountry "DEN"]
[BlackTeamCountry "BLR"]
[TimeControl "40/5400+30:1800+30"]

1. d4 {[%emt 0:00:00]} d5 {[%emt 0:00:00]} 2. c4 {[%emt 0:00:00]} dxc4 {[%emt
0:00:00]} 3. Nf3 {[%emt 0:01:42]} a6 {[%emt 0:00:05]} 4. e3 {[%emt 0:02:53]} b5
{[%emt 0:00:45]} 5. a4 {[%emt 0:01:18]} Bb7 {[%emt 0:00:45]} 6. b3 {[%emt 0:09:
19]} e6 {[%emt 0:03:18]} 7. axb5 {[%emt 0:05:45]} axb5 {[%emt 0:00:42]} 8. Rxa8
{[%emt 0:00:06]} Bxa8 {[%emt 0:00:29]} 9. bxc4 {[%emt 0:00:08]} bxc4 {[%emt 0:
00:53]} 10. Qa4+ {[%emt 0:03:30]} Nd7 {[%emt 0:11:18]} 11. Bxc4 {[%emt 0:03:42]
} Ngf6 {[%emt 0:02:23]} 12. Bb5 {[%emt 0:06:41]} Bxf3 {[%emt 0:07:53]} 13. gxf3
{[%emt 0:00:03]} Be7 {[%emt 0:01:04]} 14. Bc6 {[%emt 0:07:31]} O-O {[%emt 0:03:
32]} 15. f4 {[%emt 0:08:53]} Nd5 {[%emt 0:10:07]} 16. Bd2 {[%emt 0:02:47]} N7f6
{[%emt 0:09:43]} 17. f3 {[%emt 0:14:03]} Nb6 {[%emt 0:13:41]} 18. Qb5 {[%emt 0:
01:48]} Ne8 {[%emt 0:10:00]} 19. Qb3 {[%emt 0:08:06]} Nd6 {[%emt 0:05:14]} 20.
Na3 {[%emt 0:01:19]} Nf5 {[%emt 0:02:20]} 21. Nb5 {[%emt 0:02:58]} Nd6 {[%emt
0:03:33]} 22. Ke2 {[%emt 0:04:06]} Nbc4 {[%emt 0:04:00]} 23. Bc3 {[%emt 0:01:
21]} Nb6 {[%emt 0:04:29]} 24. Ra1 {[%emt 0:03:03]} Nxb5 {[%emt 0:00:43]} 25.
Qxb5 {[%emt 0:00:15]} Bd6 {[%emt 0:00:21]} 26. Be1 {[%emt 0:02:49]} h6 {[%emt
0:01:55]} 27. h4 {[%emt 0:01:18]} f5 {[%emt 0:02:00]} 28. Qb3 {[%emt 0:01:09]}
Qf6 {[%emt 0:00:30]} 29. Ra5 {[%emt 0:03:47]} Kh7 {[%emt 0:00:30]} 30. Qa2 {
[%emt 0:01:49]} Qe7 {[%emt 0:01:29]} 31. Rb5 {[%emt 0:01:07]} Nd7 {[%emt 0:00:
50]} 32. Rb7 {[%emt 0:00:41]} Nf6 {[%emt 0:00:22]} 33. Bb5 {[%emt 0:01:18]} Nh5
{[%emt 0:00:54]} 34. Bd3 {[%emt 0:00:52]} Qf6 {[%emt 0:00:36]} 35. Kf1 {[%emt
0:00:36]} Kh8 {[%emt 0:00:29]} 36. Bc4 {[%emt 0:00:16]} Re8 {[%emt 0:00:15]}
37. Ra7 {[%emt 0:00:27]} Kh7 {[%emt 0:00:18]} 38. Ra8 {[%emt 0:00:35]} Rxa8 {
[%emt 0:00:55]} 39. Qxa8 {[%emt 0:00:01]} g6 {[%emt 0:00:35]} 40. Qc8 {[%emt 0:
00:00]} Ng7 {[%emt 0:00:00]} 41. Ke2 {[%emt 0:05:56]} Qe7 {[%emt 0:03:06]} 42.
Kd3 {[%emt 0:07:18]} h5 {[%emt 0:15:18]} 43. Bb3 {[%emt 0:06:57]} Qf6 {[%emt 0:
11:33]} 44. Kc4 {[%emt 0:02:48]} Qe7 {[%emt 0:00:54]} 45. Kb5 {[%emt 0:00:11]}
Ba3 {[%emt 0:00:30]} 46. Ka4 {[%emt 0:06:53]} Bc1 {[%emt 0:00:43]} 47. Bb4 {
[%emt 0:00:29]} Qe8+ {[%emt 0:00:59]} 48. Qxe8 {[%emt 0:00:03]} Nxe8 {[%emt 0:
00:01]} 49. e4 {[%emt 0:01:06]} Ng7 {[%emt 0:00:39]} 50. Kb5 {[%emt 0:01:55]}
Bxf4 {[%emt 0:00:59]} 51. Kc6 {[%emt 0:01:13]} g5 {[%emt 0:00:31]} 52. Be1 {
[%emt 0:01:19]} g4 {[%emt 0:00:36]} 53. Bf2 {[%emt 0:00:39]} Bh2 {[%emt 0:00:
27]} 54. fxg4 {[%emt 0:01:18]} hxg4 {[%emt 0:00:11]} 55. exf5 {[%emt 0:00:34]}
exf5 {[%emt 0:00:35]} 56. Be3 {[%emt 0:00:38]} Kg6 {[%emt 0:00:53]} 57. Bg5 {
[%emt 0:00:26]} f4 {[%emt 0:00:58]} 58. Bc2+ {[%emt 0:00:37]} Kh5 {[%emt 0:00:
24]} 59. Bb3 {[%emt 0:00:18]} Kg6 {[%emt 0:00:20]} 60. Bc2+ {[%emt 0:00:06]}
Kf7 {[%emt 0:00:49]} 61. Bb3+ {[%emt 0:00:41]} Ke8 {[%emt 0:00:29]} 62. Bf6 {
[%emt 0:00:35]} Nf5 {[%emt 0:00:31]} 63. h5 {[%emt 0:00:51]} f3 {[%emt 0:00:27]
} 64. Bd5 {[%emt 0:00:27]} Bf4 {[%emt 0:00:24]} 65. Be4 {[%emt 0:00:31]} f2 {
[%emt 0:00:17]} 66. Bd3 {[%emt 0:00:19]} g3 {[%emt 0:00:13]} 67. Bf1 {[%emt 0:
00:46]} Ne3 {[%emt 0:00:30]} 68. Bd3 {[%emt 0:00:32]} g2 {[%emt 0:00:37]} 0-1

[Event "ETCC Open 2013"]
[Site "Warsaw"]
[Date "2013.11.10"]
[Round "3"]
[White "Nyback, Tomi"]
[Black "Rusev, Krasimir"]
[Result "0-1"]
[ECO "E46"]
[WhiteElo "2586"]
[BlackElo "2539"]
[PlyCount "81"]
[EventDate "2013.??.??"]
[EventCountry "POL"]
[WhiteTeam "Finland"]
[BlackTeam "Bulgaria"]
[WhiteTeamCountry "FIN"]
[BlackTeamCountry "BUL"]
[TimeControl "40/5400+30:1800+30"]

1. d4 {[%emt 0:00:00]} Nf6 {[%emt 0:00:00]} 2. c4 {[%emt 0:00:00]} e6 {[%emt 0:
00:08]} 3. Nc3 {[%emt 0:00:00]} Bb4 {[%emt 0:02:28]} 4. e3 {[%emt 0:00:38]} O-O
{[%emt 0:00:25]} 5. Nge2 {[%emt 0:00:37]} c6 {[%emt 0:00:41]} 6. a3 {[%emt 0:
16:32]} Ba5 {[%emt 0:00:10]} 7. Ng3 {[%emt 0:20:23]} d5 {[%emt 0:01:15]} 8.
cxd5 {[%emt 0:00:40]} exd5 {[%emt 0:01:17]} 9. Bd3 {[%emt 0:00:27]} Re8 {[%emt
0:01:34]} 10. O-O {[%emt 0:01:19]} Nbd7 {[%emt 0:00:35]} 11. f3 {[%emt 0:15:24]
} c5 {[%emt 0:08:35]} 12. Nb5 {[%emt 0:09:08]} Bb6 {[%emt 0:09:38]} 13. Nd6 {
[%emt 0:02:44]} Re6 {[%emt 0:02:06]} 14. Nxc8 {[%emt 0:02:04]} Rxc8 {[%emt 0:
00:11]} 15. Bf5 {[%emt 0:00:07]} Re8 {[%emt 0:03:44]} 16. Ne2 {[%emt 0:06:43]}
Rc7 {[%emt 0:05:28]} 17. Kh1 {[%emt 0:01:55]} Nb8 {[%emt 0:12:20]} 18. dxc5 {
[%emt 0:07:34]} Bxc5 {[%emt 0:00:15]} 19. e4 {[%emt 0:01:08]} g6 {[%emt 0:06:
37]} 20. Bh3 {[%emt 0:00:11]} dxe4 {[%emt 0:01:35]} 21. Qxd8 {[%emt 0:00:08]}
Rxd8 {[%emt 0:00:06]} 22. Bg5 {[%emt 0:00:17]} Be7 {[%emt 0:00:50]} 23. Nc3 {
[%emt 0:03:54]} exf3 {[%emt 0:05:47]} 24. Rxf3 {[%emt 0:00:29]} Nd5 {[%emt 0:
00:42]} 25. Bxe7 {[%emt 0:08:25]} Rxe7 {[%emt 0:02:27]} 26. Rd1 {[%emt 0:00:33]
} Nc6 {[%emt 0:00:37]} 27. g3 {[%emt 0:01:33]} Nxc3 {[%emt 0:01:54]} 28. Rxd8+
{[%emt 0:00:08]} Nxd8 {[%emt 0:00:04]} 29. bxc3 {[%emt 0:00:52]} Re1+ {[%emt 0:
01:39]} 30. Kg2 {[%emt 0:00:08]} Nc6 {[%emt 0:00:35]} 31. Rd3 {[%emt 0:00:29]}
Ne5 {[%emt 0:00:21]} 32. Rd8+ {[%emt 0:00:36]} Kg7 {[%emt 0:00:01]} 33. Rb8 {
[%emt 0:00:20]} Rb1 {[%emt 0:02:33]} 34. Bc8 {[%emt 0:00:08]} Rb2+ {[%emt 0:00:
15]} 35. Kf1 {[%emt 0:00:08]} b6 {[%emt 0:00:58]} 36. Rb7 {[%emt 0:00:12]} Rb3
{[%emt 0:05:14]} 37. Rxa7 {[%emt 0:00:22]} Rxc3 {[%emt 0:00:04]} 38. Be6 {
[%emt 0:00:36]} Rc1+ {[%emt 0:02:35]} 39. Ke2 {[%emt 0:01:34]} Rc2+ {[%emt 0:
00:40]} 40. Ke3 {[%emt 0:00:00]} Rxh2 {[%emt 0:00:00]} 41. Kd4 0-1

[Event "ETCC Women 2013"]
[Site "Warsaw"]
[Date "2013.11.10"]
[Round "3"]
[White "Gaponenko, Inna"]
[Black "Collas, Silvia"]
[Result "1/2-1/2"]
[ECO "C47"]
[WhiteElo "2402"]
[BlackElo "2292"]
[PlyCount "80"]
[EventDate "2013.??.??"]
[EventCountry "POL"]
[WhiteTeam "Ukraine"]
[BlackTeam "France"]
[WhiteTeamCountry "UKR"]
[BlackTeamCountry "FRA"]
[TimeControl "40/5400+30:1800+30"]

1. e4 {[%emt 0:00:00]} e5 {[%emt 0:00:00]} 2. Nf3 {[%emt 0:00:00]} Nc6 {[%emt
0:00:00]} 3. Nc3 {[%emt 0:01:28]} Nf6 {[%emt 0:00:19]} 4. d4 {[%emt 0:00:24]}
exd4 {[%emt 0:00:28]} 5. Nxd4 {[%emt 0:00:09]} Bb4 {[%emt 0:00:40]} 6. Nxc6 {
[%emt 0:00:14]} bxc6 {[%emt 0:00:06]} 7. Bd3 {[%emt 0:00:02]} d5 {[%emt 0:01:
10]} 8. exd5 {[%emt 0:00:40]} O-O {[%emt 0:00:18]} 9. O-O {[%emt 0:00:00]} cxd5
{[%emt 0:00:05]} 10. h3 {[%emt 0:00:37]} Re8 {[%emt 0:12:50]} 11. Qf3 {[%emt 0:
06:06]} Rb8 {[%emt 0:03:16]} 12. Bf4 {[%emt 0:20:46]} d4 {[%emt 0:05:29]} 13.
Ne4 {[%emt 0:10:55]} Nxe4 {[%emt 0:20:10]} 14. Bxe4 {[%emt 0:00:10]} Bd6 {
[%emt 0:00:08]} 15. Bxd6 {[%emt 0:23:38]} Qxd6 {[%emt 0:01:07]} 16. Rfe1 {
[%emt 0:00:13]} Bd7 {[%emt 0:14:25]} 17. Bd5 {[%emt 0:13:04]} Be6 {[%emt 0:00:
18]} 18. Bxe6 {[%emt 0:02:45]} Rxe6 {[%emt 0:00:08]} 19. b3 {[%emt 0:03:39]} c5
{[%emt 0:04:23]} 20. Rxe6 {[%emt 0:05:19]} Qxe6 {[%emt 0:00:07]} 21. c3 {[%emt
0:01:37]} h6 {[%emt 0:04:34]} 22. Rd1 {[%emt 0:00:33]} Rd8 {[%emt 0:01:50]} 23.
Qd3 {[%emt 0:02:03]} Rd5 {[%emt 0:03:35]} 24. cxd4 {[%emt 0:04:07]} Rxd4 {
[%emt 0:06:15]} 25. Qc2 {[%emt 0:01:19]} Rxd1+ {[%emt 0:00:25]} 26. Qxd1 {
[%emt 0:00:01]} c4 {[%emt 0:01:16]} 27. bxc4 {[%emt 0:00:19]} Qxc4 {[%emt 0:00:
06]} 28. a4 {[%emt 0:00:24]} a6 {[%emt 0:01:02]} 29. g3 {[%emt 0:00:47]} g6 {
[%emt 0:00:15]} 30. h4 {[%emt 0:00:12]} h5 {[%emt 0:00:05]} 31. Qd8+ {[%emt 0:
01:14]} Kg7 {[%emt 0:00:25]} 32. a5 {[%emt 0:00:09]} Qe2 {[%emt 0:02:07]} 33.
Qd4+ {[%emt 0:01:13]} Kg8 {[%emt 0:00:06]} 34. Qd8+ {[%emt 0:00:05]} Kg7 {
[%emt 0:00:04]} 35. Qd4+ {[%emt 0:00:03]} Kg8 {[%emt 0:00:05]} 36. Qd8+ {[%emt
0:00:05]} Kg7 {[%emt 0:00:04]} 37. Qd4+ {[%emt 0:00:05]} Kg8 {[%emt 0:00:10]}
38. Qd8+ {[%emt 0:00:04]} Kg7 {[%emt 0:00:04]} 39. Qd4+ {[%emt 0:00:03]} Kg8 {
[%emt 0:00:05]} 40. Qd8+ {[%emt 0:00:00]} Kg7 {[%emt 0:00:00]} 1/2-1/2

[Event "ETCC Women 2013"]
[Site "Warsaw"]
[Date "2013.11.10"]
[Round "3"]
[White "Maisuradze, Nino"]
[Black "Muzychuk, Mariya"]
[Result "0-1"]
[ECO "A40"]
[WhiteElo "2302"]
[BlackElo "2491"]
[PlyCount "56"]
[EventDate "2013.??.??"]
[EventCountry "POL"]
[WhiteTeam "France"]
[BlackTeam "Ukraine"]
[WhiteTeamCountry "FRA"]
[BlackTeamCountry "UKR"]
[TimeControl "40/5400+30:1800+30"]

1. d4 {[%emt 0:00:00]} e6 {[%emt 0:00:00]} 2. c4 {[%emt 0:00:00]} f5 {[%emt 0:
00:00]} 3. Nf3 {[%emt 0:00:06]} Nf6 {[%emt 0:00:17]} 4. g3 {[%emt 0:00:26]} g6
{[%emt 0:01:14]} 5. Bg2 {[%emt 0:00:12]} Bg7 {[%emt 0:00:04]} 6. Nc3 {[%emt 0:
01:19]} d6 {[%emt 0:01:42]} 7. O-O {[%emt 0:00:12]} O-O {[%emt 0:00:10]} 8. Re1
{[%emt 0:01:24]} Ne4 {[%emt 0:00:28]} 9. Qc2 {[%emt 0:00:36]} Nxc3 {[%emt 0:00:
18]} 10. bxc3 {[%emt 0:00:19]} e5 {[%emt 0:00:35]} 11. e4 {[%emt 0:14:44]} f4 {
[%emt 0:01:19]} 12. c5 {[%emt 0:14:59]} Nc6 {[%emt 0:04:57]} 13. Qb3+ {[%emt 0:
10:34]} Kh8 {[%emt 0:00:40]} 14. cxd6 {[%emt 0:01:58]} cxd6 {[%emt 0:02:48]}
15. dxe5 {[%emt 0:04:38]} Nxe5 {[%emt 0:05:33]} 16. Nxe5 {[%emt 0:04:54]} dxe5
{[%emt 0:11:13]} 17. Ba3 {[%emt 0:00:27]} Rf6 {[%emt 0:00:28]} 18. Rad1 {[%emt
0:05:55]} Qc7 {[%emt 0:00:55]} 19. Qb5 {[%emt 0:17:01]} Bg4 {[%emt 0:04:42]}
20. f3 {[%emt 0:11:12]} a6 {[%emt 0:02:34]} 21. Qd5 {[%emt 0:07:00]} Be6 {
[%emt 0:03:17]} 22. Qd6 {[%emt 0:00:24]} Qxc3 {[%emt 0:04:35]} 23. Bb4 {[%emt
0:00:06]} Qc4 {[%emt 0:25:37]} 24. a3 {[%emt 0:02:16]} a5 {[%emt 0:13:30]} 25.
Bxa5 {[%emt 0:00:13]} Bf8 {[%emt 0:03:06]} 26. Qxe5 {[%emt 0:00:11]} Qc5+ {
[%emt 0:00:13]} 27. Qxc5 {[%emt 0:01:10]} Bxc5+ {[%emt 0:00:04]} 28. Kh1 {
[%emt 0:00:05]} Rxa5 {[%emt 0:00:17]} 0-1

[Event "ETCC Women 2013"]
[Site "Warsaw"]
[Date "2013.11.10"]
[Round "3"]
[White "Sebag, Marie"]
[Black "Lagno, Kateryna"]
[Result "1/2-1/2"]
[ECO "C07"]
[WhiteElo "2510"]
[BlackElo "2542"]
[PlyCount "93"]
[EventDate "2013.??.??"]
[EventCountry "POL"]
[WhiteTeam "France"]
[BlackTeam "Ukraine"]
[WhiteTeamCountry "FRA"]
[BlackTeamCountry "UKR"]
[TimeControl "40/5400+30:1800+30"]

1. e4 {[%emt 0:00:00]} e6 {[%emt 0:00:00]} 2. d4 {[%emt 0:00:00]} d5 {[%emt 0:
00:08]} 3. Nd2 {[%emt 0:00:23]} c5 {[%emt 0:00:16]} 4. Ngf3 {[%emt 0:00:21]}
cxd4 {[%emt 0:00:16]} 5. Nxd4 {[%emt 0:05:17]} Nf6 {[%emt 0:00:19]} 6. exd5 {
[%emt 0:00:41]} Qxd5 {[%emt 0:01:26]} 7. Nb5 {[%emt 0:00:27]} Na6 {[%emt 0:00:
19]} 8. Nc3 {[%emt 0:00:13]} Qd6 {[%emt 0:09:33]} 9. Bc4 {[%emt 0:14:16]} Be7 {
[%emt 0:01:27]} 10. O-O {[%emt 0:00:54]} O-O {[%emt 0:00:38]} 11. Qe2 {[%emt 0:
03:45]} Nb4 {[%emt 0:01:20]} 12. Nf3 {[%emt 0:04:28]} a6 {[%emt 0:09:57]} 13.
a3 {[%emt 0:11:12]} b5 {[%emt 0:04:34]} 14. Bb3 {[%emt 0:12:31]} Nbd5 {[%emt 0:
03:00]} 15. Nxd5 {[%emt 0:04:28]} Nxd5 {[%emt 0:00:21]} 16. a4 {[%emt 0:01:00]}
b4 {[%emt 0:03:32]} 17. a5 {[%emt 0:04:50]} Bb7 {[%emt 0:00:43]} 18. Ne5 {
[%emt 0:00:28]} Rfd8 {[%emt 0:15:48]} 19. Re1 {[%emt 0:00:49]} Rac8 {[%emt 0:
00:39]} 20. h3 {[%emt 0:08:12]} Bf6 {[%emt 0:03:40]} 21. Qe4 {[%emt 0:06:39]}
Qb8 {[%emt 0:10:47]} 22. Nd3 {[%emt 0:01:32]} Ne7 {[%emt 0:05:22]} 23. Qg4 {
[%emt 0:03:52]} Rd4 {[%emt 0:04:09]} 24. Qe2 {[%emt 0:05:36]} Nf5 {[%emt 0:01:
36]} 25. Be3 {[%emt 0:03:27]} Re4 {[%emt 0:03:45]} 26. Qd2 {[%emt 0:00:18]} Qa8
{[%emt 0:03:22]} 27. Rad1 {[%emt 0:01:14]} Rh4 {[%emt 0:01:20]} 28. f4 {[%emt
0:03:12]} Nxe3 {[%emt 0:00:35]} 29. Qxe3 {[%emt 0:00:10]} Bxg2 {[%emt 0:00:24]}
30. Nf2 {[%emt 0:00:20]} Bxh3 {[%emt 0:01:29]} 31. Ne4 {[%emt 0:00:24]} Bf5 {
[%emt 0:00:48]} 32. Rd7 {[%emt 0:01:14]} Bxb2 {[%emt 0:02:09]} 33. Qb6 {[%emt
0:02:37]} Bxe4 {[%emt 0:01:03]} 34. Rxe4 {[%emt 0:00:08]} Rh1+ {[%emt 0:05:46]}
35. Kf2 {[%emt 0:00:08]} Bc3 {[%emt 0:02:03]} 36. Rb7 {[%emt 0:00:58]} Rf8 {
[%emt 0:00:41]} 37. f5 {[%emt 0:00:49]} Rh5 {[%emt 0:00:45]} 38. fxe6 {[%emt 0:
01:06]} Rb5 {[%emt 0:02:16]} 39. e7 {[%emt 0:00:35]} Rxb6 {[%emt 0:00:30]} 40.
exf8=Q+ Qxf8 {[%emt 0:00:00]} 41. axb6 {[%emt 0:00:27]} Qc5+ {[%emt 0:00:00]}
42. Re3 {[%emt 0:13:31]} Qf5+ {[%emt 0:00:00]} 43. Kg2 {[%emt 0:00:28]} Qg4+ {
[%emt 0:03:25]} 44. Kf2 {[%emt 0:03:42]} Qf4+ {[%emt 0:03:45]} 45. Kg2 {[%emt
0:00:24]} Qg4+ {[%emt 0:01:30]} 46. Kf2 {[%emt 0:00:04]} Qf4+ {[%emt 0:00:05]}
47. Kg2 {[%emt 0:00:02]} 1/2-1/2

[Event "ETCC Women 2013"]
[Site "Warsaw"]
[Date "2013.11.10"]
[Round "3"]
[White "Ushenina, Anna"]
[Black "Milliet, Sophie"]
[Result "1-0"]
[ECO "E32"]
[WhiteElo "2492"]
[BlackElo "2383"]
[PlyCount "61"]
[EventDate "2013.??.??"]
[EventCountry "POL"]
[WhiteTeam "Ukraine"]
[BlackTeam "France"]
[WhiteTeamCountry "UKR"]
[BlackTeamCountry "FRA"]
[TimeControl "40/5400+30:1800+30"]

1. d4 {[%emt 0:00:00]} Nf6 {[%emt 0:00:00]} 2. c4 {[%emt 0:00:00]} e6 {[%emt 0:
00:00]} 3. Nc3 {[%emt 0:00:00]} Bb4 {[%emt 0:00:00]} 4. Qc2 {[%emt 0:00:20]}
O-O {[%emt 0:00:08]} 5. e4 {[%emt 0:00:05]} d5 {[%emt 0:00:26]} 6. e5 {[%emt 0:
00:06]} Ne4 {[%emt 0:00:10]} 7. Bd3 {[%emt 0:00:59]} c5 {[%emt 0:00:12]} 8. Nf3
{[%emt 0:00:11]} cxd4 {[%emt 0:00:12]} 9. Nxd4 {[%emt 0:00:05]} Nd7 {[%emt 0:
00:13]} 10. Bf4 {[%emt 0:00:09]} Qh4 {[%emt 0:01:38]} 11. g3 {[%emt 0:00:39]}
Qh5 {[%emt 0:00:09]} 12. h4 {[%emt 0:01:46]} f6 {[%emt 0:01:55]} 13. cxd5 {
[%emt 0:00:57]} fxe5 {[%emt 0:29:27]} 14. Nxe6 {[%emt 0:04:03]} Ndc5 {[%emt 0:
16:04]} 15. Bxe4 {[%emt 0:51:45]} Bxe6 {[%emt 0:07:32]} 16. dxe6 {[%emt 0:03:
42]} exf4 {[%emt 0:00:19]} 17. O-O {[%emt 0:02:56]} Bxc3 {[%emt 0:01:40]} 18.
bxc3 {[%emt 0:00:36]} Rae8 {[%emt 0:11:16]} 19. Rad1 {[%emt 0:04:05]} b6 {
[%emt 0:23:10]} 20. Rd5 Qh6 21. Re1 fxg3 22. fxg3 Kh8 23. Bf5 Qf6 24. Rde5 g6
25. Bh3 Re7 26. R5e3 Rfe8 27. Qe2 Qg7 28. Qb5 Qg8 29. a4 Nxe6 30. Qb3 Ng5 31.
Qxg8+ 1-0

[Event "ETCC Women 2013"]
[Site "Warsaw"]
[Date "2013.11.10"]
[Round "3"]
[White "Abdulla, Khayala"]
[Black "Matnadze, Ana"]
[Result "1/2-1/2"]
[ECO "B12"]
[WhiteElo "2255"]
[BlackElo "2373"]
[PlyCount "98"]
[EventDate "2013.??.??"]
[EventCountry "POL"]
[WhiteTeam "Azerbaijan"]
[BlackTeam "Spain"]
[WhiteTeamCountry "AZE"]
[BlackTeamCountry "ESP"]
[TimeControl "40/5400+30:1800+30"]

1. e4 {[%emt 0:00:00]} c6 {[%emt 0:00:00]} 2. d4 {[%emt 0:00:00]} g6 {[%emt 0:
00:00]} 3. Nc3 {[%emt 0:00:31]} Bg7 {[%emt 0:00:00]} 4. Nf3 {[%emt 0:01:14]} d5
{[%emt 0:00:00]} 5. h3 {[%emt 0:00:23]} dxe4 {[%emt 0:02:30]} 6. Nxe4 {[%emt 0:
00:04]} Nf6 {[%emt 0:06:10]} 7. Bd3 {[%emt 0:01:51]} Nxe4 {[%emt 0:00:44]} 8.
Bxe4 {[%emt 0:00:04]} O-O {[%emt 0:00:07]} 9. O-O {[%emt 0:00:32]} Nd7 {[%emt
0:01:08]} 10. c3 {[%emt 0:01:57]} c5 {[%emt 0:03:37]} 11. Bg5 {[%emt 0:12:00]}
cxd4 {[%emt 0:02:12]} 12. Nxd4 {[%emt 0:04:00]} Nf6 {[%emt 0:03:25]} 13. Bf3 {
[%emt 0:03:50]} Qa5 {[%emt 0:03:15]} 14. Qc1 {[%emt 0:05:06]} e5 {[%emt 0:00:
43]} 15. Nb3 {[%emt 0:02:25]} Qc7 {[%emt 0:00:16]} 16. Qe3 {[%emt 0:06:59]} Bf5
{[%emt 0:05:18]} 17. Qc5 {[%emt 0:13:05]} Rfc8 {[%emt 0:04:13]} 18. Qxc7 {
[%emt 0:01:56]} Rxc7 {[%emt 0:00:02]} 19. Rfe1 {[%emt 0:01:00]} Nd7 {[%emt 0:
03:04]} 20. Rad1 {[%emt 0:06:22]} a5 {[%emt 0:01:38]} 21. Rd5 {[%emt 0:05:44]}
a4 {[%emt 0:01:17]} 22. Ra5 {[%emt 0:04:36]} Rxa5 {[%emt 0:00:22]} 23. Nxa5 {
[%emt 0:00:03]} a3 {[%emt 0:01:40]} 24. Bc1 {[%emt 0:06:51]} axb2 {[%emt 0:06:
35]} 25. Bxb2 {[%emt 0:00:03]} Nc5 {[%emt 0:01:41]} 26. Rd1 {[%emt 0:02:42]}
Nd3 {[%emt 0:05:00]} 27. g4 {[%emt 0:06:47]} Nxb2 {[%emt 0:01:39]} 28. Rd8+ {
[%emt 0:00:04]} Bf8 {[%emt 0:00:04]} 29. gxf5 {[%emt 0:00:09]} gxf5 {[%emt 0:
02:24]} 30. Bxb7 {[%emt 0:01:23]} Kg7 {[%emt 0:00:28]} 31. Bc6 {[%emt 0:03:34]}
Bc5 {[%emt 0:07:31]} 32. Bb5 {[%emt 0:05:53]} Bb6 {[%emt 0:02:25]} 33. Rd2 {
[%emt 0:01:34]} Bxa5 {[%emt 0:01:19]} 34. Rxb2 {[%emt 0:00:04]} Rxc3 {[%emt 0:
00:53]} 35. Kg2 {[%emt 0:00:49]} f4 {[%emt 0:00:58]} 36. f3 {[%emt 0:01:31]}
Rc1 {[%emt 0:01:43]} 37. Bd3 {[%emt 0:00:33]} Rd1 {[%emt 0:01:41]} 38. Be4 {
[%emt 0:00:50]} Bc3 {[%emt 0:00:53]} 39. Rc2 {[%emt 0:01:41]} Bd4 {[%emt 0:01:
04]} 40. Kh2 {[%emt 0:00:00]} h6 {[%emt 0:00:00]} 41. Rg2+ {[%emt 0:07:42]} Kf6
{[%emt 0:03:26]} 42. Rc2 {[%emt 0:02:18]} Bg1+ {[%emt 0:01:36]} 43. Kg2 {[%emt
0:01:41]} Be3 {[%emt 0:00:00]} 44. Kh2 {[%emt 0:01:08]} h5 {[%emt 0:00:47]} 45.
h4 {[%emt 0:06:31]} Bg1+ {[%emt 0:15:21]} 46. Kg2 {[%emt 0:00:15]} Be3 {[%emt
0:00:37]} 47. Kh2 {[%emt 0:00:50]} Bg1+ {[%emt 0:00:17]} 48. Kg2 {[%emt 0:00:
09]} Be3 {[%emt 0:00:37]} 49. Kh2 {[%emt 0:00:55]} Bg1+ {[%emt 0:10:42]}
1/2-1/2